fUSD/lending_fUSD_20260616
["ID","MTS","AMOUNT","RATE_DAILY","PERIOD"]
[425134157,1781542275000,-301.136886,0.000375,30]
[425134160,1781542275000,-301.136886,0.000375,30]
[425134156,1781542275000,-151.0,0.000375,30]
[425134162,1781542275000,-301.136882,0.000375,30]
[425134171,1781542275000,-1835.663357,0.000375,30]
[425134161,1781542275000,-301.136886,0.000375,30]
[425134168,1781542275000,-1835.663357,0.000375,30]
[425134169,1781542275000,-1835.663357,0.000375,30]
[425134170,1781542275000,-1835.663357,0.000375,30]
[425134166,1781542275000,-1835.663357,0.000375,30]
[425134165,1781542275000,-151.0,0.000375,30]
[425134164,1781542275000,-151.0,0.000375,30]
[425134163,1781542275000,-151.0,0.000375,30]
[425134167,1781542275000,-1835.663357,0.000375,30]
[425134172,1781542276000,-1835.663357,0.000375,30]
[425134173,1781542276000,-1835.663357,0.000375,30]
[425134174,1781542276000,-173.800177,0.000375,30]
[425134175,1781542276000,-1835.663357,0.000375,30]
[425134176,1781542276000,-1835.663357,0.000375,30]
[425134177,1781542276000,-1835.663357,0.000375,30]
[425134179,1781542276000,-151.0,0.000375,30]
[425134181,1781542276000,-151.0,0.000375,30]
[425134180,1781542276000,-151.0,0.000375,30]
[425134183,1781542276000,-238.430824,0.000375,30]
[425134182,1781542276000,-238.430824,0.000375,30]
[425134184,1781542276000,-238.430824,0.000375,30]
[425134178,1781542276000,-1835.663352,0.000375,30]
[425134185,1781542277000,-276.065394,0.000375,30]
[425134190,1781542277000,-238.430824,0.000375,30]
[425134186,1781542277000,-238.430824,0.000375,30]
[425134187,1781542277000,-238.430824,0.000375,30]
[425134188,1781542277000,-238.430824,0.000375,30]
[425134189,1781542277000,-238.430824,0.000375,30]
[425134192,1781542277000,-238.430824,0.000375,30]
[425134199,1781542277000,-966.738167,0.000375,30]
[425134193,1781542277000,-238.430824,0.000375,30]
[425134194,1781542277000,-238.43083,0.000375,30]
[425134195,1781542277000,-966.738167,0.000375,30]
[425134196,1781542277000,-966.738167,0.000375,30]
[425134197,1781542277000,-966.738167,0.000375,30]
[425134198,1781542277000,-966.738167,0.000375,30]
[425134200,1781542277000,-966.738167,0.000375,30]
[425134191,1781542277000,-238.430824,0.000375,30]
[425134202,1781542278000,-966.738167,0.000375,30]
[425134201,1781542278000,-1094.207685,0.000375,30]
[425134203,1781542278000,-1094.207685,0.000375,30]
[425134205,1781542278000,-1094.207685,0.000375,30]
[425134204,1781542278000,-966.738167,0.000375,30]
[425134206,1781542278000,-966.738167,0.000375,30]
[425134207,1781542278000,-1094.207685,0.000375,30]
[425134208,1781542278000,-966.738167,0.000375,30]
[425134209,1781542278000,-1094.207685,0.000375,30]
[425134210,1781542278000,-966.738167,0.000375,30]
[425134212,1781542278000,-966.738162,0.000375,30]
[425134211,1781542278000,-1094.207685,0.000375,30]
[425134213,1781542278000,-1094.207685,0.000375,30]
[425134214,1781542278000,-1094.207685,0.000375,30]
[425134215,1781542278000,-1094.207685,0.000375,30]
[425134217,1781542278000,-1094.207685,0.000375,30]
[425134216,1781542278000,-1094.207685,0.000375,30]
[425134218,1781542279000,-1094.207679,0.000375,30]
[425134219,1781542279000,-469.301051,0.000375,30]
[425134220,1781542279000,-222.888937,0.000375,30]
[425134222,1781542279000,-222.888937,0.000375,30]
[425134221,1781542279000,-469.301051,0.000375,30]
[425134224,1781542279000,-469.301051,0.000375,30]
[425134223,1781542279000,-222.888937,0.000375,30]
[425134233,1781542279000,-469.301051,0.000375,30]
[425134226,1781542279000,-151.0,0.000375,30]
[425134227,1781542279000,-469.301051,0.000375,30]
[425134229,1781542279000,-151.0,0.000375,30]
[425134228,1781542279000,-222.888937,0.000375,30]
[425134230,1781542279000,-469.301051,0.000375,30]
[425134231,1781542279000,-222.888937,0.000375,30]
[425134232,1781542279000,-151.0,0.000375,30]
[425134225,1781542279000,-151.0,0.000375,30]
[425134241,1781542280000,-469.301051,0.000375,30]
[425134234,1781542280000,-222.888937,0.000375,30]
[425134235,1781542280000,-151.0,0.000375,30]
[425134236,1781542280000,-151.0,0.000375,30]
[425134237,1781542280000,-151.0,0.000375,30]
[425134238,1781542280000,-151.0,0.000375,30]
[425134239,1781542280000,-151.0,0.000375,30]
[425134240,1781542280000,-151.0,0.000375,30]
[425134250,1781542280000,-469.301051,0.000375,30]
[425134243,1781542280000,-151.0,0.000375,30]
[425134249,1781542280000,-151.0,0.000375,30]
[425134251,1781542280000,-222.888937,0.000375,30]
[425134248,1781542280000,-222.888937,0.000375,30]
[425134242,1781542280000,-222.888937,0.000375,30]
[425134247,1781542280000,-469.301051,0.000375,30]
[425134244,1781542280000,-469.301051,0.000375,30]
[425134245,1781542280000,-222.888937,0.000375,30]
[425134246,1781542280000,-151.0,0.000375,30]
[425134259,1781542281000,-151.0,0.000375,30]
[425134252,1781542281000,-151.0,0.000375,30]
[425134254,1781542281000,-222.888937,0.000375,30]
[425134255,1781542281000,-151.0,0.000375,30]
[425134256,1781542281000,-222.888941,0.000375,30]
[425134257,1781542281000,-469.301047,0.000375,30]
[425134258,1781542281000,-151.0,0.000375,30]
[425134253,1781542281000,-469.301051,0.000375,30]
[425134260,1781542281000,-151.0,0.000375,30]
[425134262,1781542281000,-297.53728,0.000375,30]
[425134263,1781542281000,-151.0,0.000375,30]
[425134264,1781542281000,-226.123657,0.000375,30]
[425134266,1781542281000,-151.0,0.000375,30]
[425134265,1781542281000,-151.0,0.000375,30]
[425134267,1781542281000,-151.0,0.000375,30]
[425134268,1781542281000,-151.0,0.000375,30]
[425134269,1781542281000,-151.0,0.000375,30]
[425134261,1781542281000,-151.0,0.000375,30]
[425134275,1781542282000,-252.288631,0.000375,30]
[425134274,1781542282000,-422.83462,0.000375,30]
[425134273,1781542282000,-151.0,0.000375,30]
[425134271,1781542282000,-151.0,0.000375,30]
[425134277,1781542282000,-422.83462,0.000375,30]
[425134270,1781542282000,-151.0,0.000375,30]
[425134272,1781542282000,-151.0,0.000375,30]
[425134276,1781542282000,-422.83462,0.000375,30]
[425134283,1781542282000,-422.83462,0.000375,30]
[425134279,1781542282000,-422.83462,0.000375,30]
[425134280,1781542282000,-422.83462,0.000375,30]
[425134282,1781542282000,-422.83462,0.000375,30]
[425134281,1781542282000,-422.83462,0.000375,30]
[425134284,1781542282000,-422.83462,0.000375,30]
[425134285,1781542282000,-422.83462,0.000375,30]
[425134286,1781542282000,-422.83462,0.000375,30]
[425134278,1781542282000,-422.83462,0.000375,30]
[425134287,1781542283000,-353.632604,0.000375,30]
[425134288,1781542283000,-422.83462,0.000375,30]
[425134289,1781542283000,-353.632604,0.000375,30]
[425134290,1781542283000,-422.83462,0.000375,30]
[425134292,1781542283000,-422.83462,0.000375,30]
[425134291,1781542283000,-353.632604,0.000375,30]
[425134293,1781542283000,-353.632604,0.000375,30]
[425134295,1781542283000,-353.632604,0.000375,30]
[425134294,1781542283000,-422.83461264,0.000375,30]
[425134296,1781542283000,-353.632604,0.000375,30]
[425134298,1781542283000,-353.632604,0.000375,30]
[425134297,1781542283000,-353.632604,0.000375,30]
[425134299,1781542283000,-353.632604,0.000375,30]
[425134300,1781542283000,-353.632604,0.000375,30]
[425134301,1781542283000,-353.632604,0.000375,30]
[425134303,1781542283000,-353.632604,0.000375,30]
[425134302,1781542283000,-353.632604,0.000375,30]
[425134304,1781542284000,-353.632604,0.000375,30]
[425134305,1781542284000,-353.632604,0.000375,30]
[425134306,1781542284000,-353.632611,0.000375,30]
[425134307,1781542284000,-259.291306,0.000375,30]
[425134308,1781542284000,-259.291306,0.000375,30]
[425134310,1781542284000,-259.291306,0.000375,30]
[425134311,1781542284000,-259.291306,0.000375,30]
[425134309,1781542284000,-259.291306,0.000375,30]
[425134313,1781542284000,-151.000016,0.000375,30]
[425134320,1781542284000,-259.291306,0.000375,30]
[425134319,1781542284000,-657.784135,0.000375,30]
[425134318,1781542284000,-259.291306,0.000375,30]
[425134312,1781542284000,-259.291306,0.000375,30]
[425134317,1781542284000,-259.291306,0.000375,30]
[425134315,1781542284000,-259.291306,0.000375,30]
[425134314,1781542284000,-259.291306,0.000375,30]
[425134316,1781542284000,-259.291306,0.000375,30]
[425134329,1781542285000,-171.404601,0.000375,30]
[425134322,1781542285000,-151.0,0.000375,30]
[425134323,1781542285000,-657.784135,0.000375,30]
[425134324,1781542285000,-259.291306,0.000375,30]
[425134325,1781542285000,-151.0,0.000375,30]
[425134326,1781542285000,-151.0,0.000375,30]
[425134328,1781542285000,-259.291306,0.000375,30]
[425134327,1781542285000,-657.784135,0.000375,30]
[425134321,1781542285000,-657.784135,0.000375,30]
[425134330,1781542285000,-151.0,0.000375,30]
[425134332,1781542285000,-259.291306,0.000375,30]
[425134333,1781542285000,-183.151213,0.000375,30]
[425134335,1781542285000,-657.784135,0.000375,30]
[425134334,1781542285000,-151.0,0.000375,30]
[425134337,1781542285000,-657.784135,0.000375,30]
[425134336,1781542285000,-259.291313,0.000375,30]
[425134338,1781542285000,-151.0,0.000375,30]
[425134339,1781542285000,-657.784135,0.000375,30]
[425134340,1781542285000,-151.0,0.000375,30]
[425134331,1781542285000,-151.0,0.000375,30]
[425134348,1781542286000,-657.784135,0.000375,30]
[425134347,1781542286000,-657.784135,0.000375,30]
[425134346,1781542286000,-657.784135,0.000375,30]
[425134349,1781542286000,-657.784135,0.000375,30]
[425134344,1781542286000,-657.784135,0.000375,30]
[425134343,1781542286000,-167.053532,0.000375,30]
[425134342,1781542286000,-151.0,0.000375,30]
[425134345,1781542286000,-657.784135,0.000375,30]
[425134350,1781542286000,-657.784135,0.000375,30]
[425134341,1781542286000,-657.784135,0.000375,30]
[425134352,1781542286000,-151.0,0.000375,30]
[425134360,1781542286000,-2000.0,0.00037616,30]
[425134359,1781542286000,-573.91168715,0.00037614,60]
[425134358,1781542286000,-456997.0,0.000376,30]
[425134357,1781542286000,-50702.5,0.000376,31]
[425134351,1781542286000,-657.784132,0.000375,30]
[425134355,1781542286000,-150.0,0.00037508,120]
[425134354,1781542286000,-151.0,0.000375,30]
[425134353,1781542286000,-151.0,0.000375,30]
[425134356,1781542286000,-500.0,0.00037589,120]
[425134368,1781542287000,-150.0,0.00037742,120]
[425134361,1781542287000,-174.90766973,0.00037642,120]
[425134362,1781542287000,-262.36150459,0.00037642,120]
[425134363,1781542287000,-494.79607861,0.00037642,120]
[425134364,1781542287000,-246.39803931,0.00037642,120]
[425134365,1781542287000,-260.31,0.0003765,78]
[425134366,1781542287000,-6000.0,0.00037654,31]
[425134367,1781542287000,-350.0,0.0003767,46]
[425134369,1781542287000,-573.91168715,0.00037767,60]
[425134370,1781542287000,-3225.11856622,0.0003777,30]
[425134381,1781542287000,-1534.36,0.000378,120]
[425134372,1781542287000,-5290.0,0.00037777,30]
[425134373,1781542287000,-278.0,0.0003778,120]
[425134374,1781542287000,-278.0,0.0003778,120]
[425134376,1781542287000,-4418.73,0.00037791,60]
[425134375,1781542287000,-1014.26641031,0.0003779,30]
[425134377,1781542287000,-1689.4951,0.000378,120]
[425134378,1781542287000,-2329.54,0.000378,120]
[425134379,1781542287000,-1534.369,0.000378,120]
[425134380,1781542287000,-1534.369,0.000378,120]
[425134371,1781542287000,-224.14517,0.00037771,120]
[425134389,1781542288000,-946.43,0.00037842,120]
[425134388,1781542288000,-213.08619386,0.00037823,120]
[425134387,1781542288000,-209.0290413,0.00037823,120]
[425134386,1781542288000,-211.43435247,0.00037823,120]
[425134391,1781542288000,-568.45,0.00037842,120]
[425134384,1781542288000,-265.08,0.00037801,60]
[425134382,1781542288000,-7071.0,0.000378,30]
[425134383,1781542288000,-164000.0,0.000378,30]
[425134385,1781542288000,-21202.79,0.0003782,60]
[425134392,1781542288000,-150.03,0.00037842,120]
[425134390,1781542288000,-453.95,0.00037842,120]
[425134403,1781542288000,-265.08,0.00037901,60]
[425134402,1781542288000,-278.0,0.000379,120]
[425134401,1781542288000,-800.0,0.000379,120]
[425134400,1781542288000,-3836.83749492,0.000379,120]
[425134399,1781542288000,-10000.0,0.00037896,30]
[425134393,1781542288000,-407.9,0.00037842,120]
[425134398,1781542288000,-178.53,0.00037876,60]
[425134396,1781542288000,-265.08,0.00037851,60]
[425134395,1781542288000,-250.95,0.00037842,120]
[425134394,1781542288000,-156.74,0.00037842,120]
[425134397,1781542288000,-252.05,0.00037864,120]
[425134413,1781542289000,-2896.0,0.00037989,62]
[425134405,1781542289000,-573.91168715,0.00037919,60]
[425134404,1781542289000,-145607.38965475,0.0003791,60]
[425134406,1781542289000,-178.53,0.00037926,60]
[425134407,1781542289000,-278.0,0.00037942,120]
[425134408,1781542289000,-278.0,0.00037942,120]
[425134409,1781542289000,-265.08,0.00037951,60]
[425134411,1781542289000,-178.53,0.00037976,60]
[425134410,1781542289000,-491.54,0.00037962,120]
[425134412,1781542289000,-462.0,0.00037986,90]
[425134414,1781542289000,-150.0,0.00037992,120]
[425134418,1781542289000,-19000.0,0.00038,120]
[425134416,1781542289000,-50000.0,0.00038,47]
[425134417,1781542289000,-30000.0,0.00038,60]
[425134419,1781542289000,-137638.59182419,0.00038,120]
[425134420,1781542289000,-7699.0,0.00038,120]
[425134421,1781542289000,-13245.40307476,0.00038,30]
[425134422,1781542289000,-49887.58238809,0.00038,30]
[425134423,1781542289000,-64999.91546868,0.00038,30]
[425134424,1781542289000,-300000.0,0.00038,30]
[425134425,1781542289000,-1000.0,0.00038,120]
[425134415,1781542289000,-157.14013388,0.00037992,120]
[425134431,1781542290000,-636.0,0.00038,120]
[425134433,1781542290000,-171.31207327,0.00038,60]
[425134432,1781542290000,-874.6690742,0.00038,120]
[425134430,1781542290000,-10000.0,0.00038,120]
[425134434,1781542290000,-9756.81248888,0.00038,61]
[425134428,1781542290000,-562.11498559,0.00038,120]
[425134427,1781542290000,-2000.0,0.00038,30]
[425134426,1781542290000,-230.23628692,0.00038,60]
[425134429,1781542290000,-2416.83977503,0.00038,45]
[425134435,1781542290000,-9473.94525795,0.00038,61]
[425134436,1781542290000,-100792.131,0.00038,30]
[425134437,1781542290000,-2691.68832956,0.00038,120]
[425134447,1781542290000,-2000.0,0.00038,120]
[425134443,1781542290000,-509.57914337,0.00038,120]
[425134444,1781542290000,-5000.0,0.00038,30]
[425134445,1781542290000,-2000.0,0.00038,120]
[425134446,1781542290000,-2000.0,0.00038,120]
[425134441,1781542290000,-610.72752266,0.00038,120]
[425134440,1781542290000,-334.8955197,0.00038,120]
[425134439,1781542290000,-310.67834205,0.00038,120]
[425134438,1781542290000,-534.0,0.00038,60]
[425134442,1781542290000,-700.80735403,0.00038,30]
[425134457,1781542291000,-100000.0,0.00038,120]
[425134448,1781542291000,-2000.0,0.00038,120]
[425134449,1781542291000,-2000.0,0.00038,120]
[425134451,1781542291000,-202.02613664,0.00038,120]
[425134450,1781542291000,-2000.0,0.00038,120]
[425134453,1781542291000,-5200.0,0.00038,30]
[425134452,1781542291000,-500.0,0.00038,120]
[425134455,1781542291000,-153.0,0.00038,120]
[425134454,1781542291000,-7242.27,0.00038,120]
[425134456,1781542291000,-5000.0,0.00038,120]
[425134459,1781542291000,-600.0,0.00038,120]
[425134458,1781542291000,-23589.1033709,0.00038,92]
[425134467,1781542291000,-1377.83773931,0.00038,120]
[425134465,1781542291000,-184.6,0.00038,120]
[425134466,1781542291000,-60130.444709,0.00038,120]
[425134463,1781542291000,-1070.19643361,0.00038,120]
[425134468,1781542291000,-10000.0,0.00038,30]
[425134460,1781542291000,-157949.35882006,0.00038,30]
[425134462,1781542291000,-51811.0,0.00038,120]
[425134461,1781542291000,-10319.0,0.00038,120]
[425134464,1781542291000,-152.0,0.00038,120]
[425134476,1781542292000,-843.61,0.00038,90]
[425134469,1781542292000,-500.0,0.00038,120]
[425134470,1781542292000,-5000.0,0.00038,90]
[425134471,1781542292000,-1600.0,0.00038,30]
[425134473,1781542292000,-6386.25805243,0.00038,120]
[425134472,1781542292000,-1263.67,0.00038,30]
[425134474,1781542292000,-1271.0,0.00038,90]
[425134475,1781542292000,-1253.96,0.00038,90]
[425134477,1781542292000,-499829.00597436,0.00038,30]
[425134479,1781542292000,-178.53,0.00038026,60]
[425134478,1781542292000,-265.08,0.00038001,60]
[425134480,1781542292000,-163.0,0.0003804,120]
[425134489,1781542292000,-362.85262543,0.000381,33]
[425134488,1781542292000,-260.31,0.0003809,93]
[425134486,1781542292000,-178.53,0.00038076,60]
[425134487,1781542292000,-2017.10229327,0.00038082,30]
[425134490,1781542292000,-2515.6342666,0.000381,33]
[425134485,1781542292000,-221.566406,0.00038075,120]
[425134482,1781542292000,-150.0,0.00038045,120]
[425134483,1781542292000,-265.08,0.00038051,60]
[425134481,1781542292000,-5536.94419842,0.00038045,120]
[425134484,1781542292000,-573.91168715,0.00038071,60]
[425134500,1781542293000,-21638.46,0.00038125,120]
[425134492,1781542293000,-311.91271785,0.000381,33]
[425134491,1781542293000,-1745.97030437,0.000381,33]
[425134494,1781542293000,-43435.13435259,0.000381,120]
[425134493,1781542293000,-948.57092172,0.000381,120]
[425134495,1781542293000,-80696.4142,0.000381,120]
[425134496,1781542293000,-431.98726311,0.000381,120]
[425134497,1781542293000,-265.08,0.00038101,60]
[425134498,1781542293000,-371.04660732,0.00038115,120]
[425134499,1781542293000,-14425.64,0.00038125,30]
[425134502,1781542293000,-50000.0,0.00038141,60]
[425134501,1781542293000,-178.53,0.00038126,60]
[425134511,1781542293000,-50000.0,0.00038141,69]
[425134509,1781542293000,-50000.0,0.00038141,67]
[425134508,1781542293000,-50000.0,0.00038141,66]
[425134506,1781542293000,-50000.0,0.00038141,64]
[425134510,1781542293000,-50000.0,0.00038141,68]
[425134505,1781542293000,-50000.0,0.00038141,63]
[425134504,1781542293000,-50000.0,0.00038141,62]
[425134503,1781542293000,-50000.0,0.00038141,61]
[425134507,1781542293000,-50000.0,0.00038141,65]
[425134520,1781542294000,-500.0,0.00038141,120]
[425134512,1781542294000,-500.0,0.00038141,120]
[425134513,1781542294000,-500.0,0.00038141,120]
[425134515,1781542294000,-500.0,0.00038141,120]
[425134514,1781542294000,-500.0,0.00038141,120]
[425134516,1781542294000,-500.0,0.00038141,120]
[425134517,1781542294000,-500.0,0.00038141,120]
[425134518,1781542294000,-500.0,0.00038141,120]
[425134519,1781542294000,-500.0,0.00038141,120]
[425134521,1781542294000,-500.0,0.00038141,120]
[425134529,1781542294000,-500.0,0.00038141,120]
[425134523,1781542294000,-500.0,0.00038141,120]
[425134522,1781542294000,-500.0,0.00038141,120]
[425134531,1781542294000,-500.0,0.00038141,120]
[425134530,1781542294000,-500.0,0.00038141,120]
[425134528,1781542294000,-500.0,0.00038141,120]
[425134533,1781542294000,-500.0,0.00038141,120]
[425134527,1781542294000,-500.0,0.00038141,120]
[425134526,1781542294000,-500.0,0.00038141,120]
[425134525,1781542294000,-500.0,0.00038141,120]
[425134524,1781542294000,-500.0,0.00038141,120]
[425134532,1781542294000,-500.0,0.00038141,120]
[425134540,1781542295000,-500.0,0.00038141,120]
[425134535,1781542295000,-500.0,0.00038141,120]
[425134536,1781542295000,-500.0,0.00038141,120]
[425134534,1781542295000,-462.08041941,0.00038141,120]
[425134538,1781542295000,-500.0,0.00038141,120]
[425134537,1781542295000,-500.0,0.00038141,120]
[425134539,1781542295000,-500.0,0.00038141,120]
[425134542,1781542295000,-500.0,0.00038141,120]
[425134541,1781542295000,-500.0,0.00038141,120]
[425134544,1781542295000,-500.0,0.00038141,120]
[425134543,1781542295000,-500.0,0.00038141,120]
[425134545,1781542295000,-500.0,0.00038141,120]
[425134546,1781542295000,-500.0,0.00038141,120]
[425134547,1781542295000,-500.0,0.00038141,120]
[425134548,1781542295000,-500.0,0.00038141,120]
[425134549,1781542295000,-500.0,0.00038141,120]
[425134550,1781542295000,-500.0,0.00038141,120]
[425134551,1781542295000,-500.0,0.00038141,120]
[425134559,1781542296000,-600.0,0.00038141,120]
[425134558,1781542296000,-600.0,0.00038141,120]
[425134557,1781542296000,-1123.40740569,0.00038141,120]
[425134556,1781542296000,-500.0,0.00038141,120]
[425134552,1781542296000,-500.0,0.00038141,120]
[425134553,1781542296000,-529.33688092,0.00038141,120]
[425134554,1781542296000,-300.0,0.00038141,120]
[425134562,1781542296000,-600.0,0.00038141,120]
[425134555,1781542296000,-500.0,0.00038141,120]
[425134561,1781542296000,-600.0,0.00038141,120]
[425134560,1781542296000,-600.0,0.00038141,120]
[425134565,1781542296000,-600.0,0.00038141,120]
[425134572,1781542296000,-600.0,0.00038141,120]
[425134570,1781542296000,-600.0,0.00038141,120]
[425134571,1781542296000,-600.0,0.00038141,120]
[425134569,1781542296000,-600.0,0.00038141,120]
[425134563,1781542296000,-600.0,0.00038141,120]
[425134567,1781542296000,-600.0,0.00038141,120]
[425134566,1781542296000,-600.0,0.00038141,120]
[425134564,1781542296000,-600.0,0.00038141,120]
[425134573,1781542296000,-600.0,0.00038141,120]
[425134568,1781542296000,-600.0,0.00038141,120]
[425134584,1781542297000,-600.0,0.00038141,120]
[425134576,1781542297000,-600.0,0.00038141,120]
[425134575,1781542297000,-600.0,0.00038141,120]
[425134577,1781542297000,-600.0,0.00038141,120]
[425134578,1781542297000,-600.0,0.00038141,120]
[425134579,1781542297000,-600.0,0.00038141,120]
[425134580,1781542297000,-600.0,0.00038141,120]
[425134581,1781542297000,-600.0,0.00038141,120]
[425134582,1781542297000,-600.0,0.00038141,120]
[425134574,1781542297000,-600.0,0.00038141,120]
[425134583,1781542297000,-600.0,0.00038141,120]
[425134587,1781542297000,-600.0,0.00038141,120]
[425134586,1781542297000,-600.0,0.00038141,120]
[425134588,1781542297000,-600.0,0.00038141,120]
[425134589,1781542297000,-600.0,0.00038141,120]
[425134591,1781542297000,-288.09750576,0.00038141,120]
[425134590,1781542297000,-600.0,0.00038141,120]
[425134592,1781542297000,-329.79772871,0.00038141,120]
[425134594,1781542297000,-500.0,0.00038141,120]
[425134593,1781542297000,-500.0,0.00038141,120]
[425134595,1781542297000,-500.0,0.00038141,120]
[425134585,1781542297000,-600.0,0.00038141,120]
[425134602,1781542298000,-500.0,0.00038141,120]
[425134605,1781542298000,-500.0,0.00038141,120]
[425134603,1781542298000,-500.0,0.00038141,120]
[425134601,1781542298000,-500.0,0.00038141,120]
[425134596,1781542298000,-500.0,0.00038141,120]
[425134599,1781542298000,-500.0,0.00038141,120]
[425134597,1781542298000,-500.0,0.00038141,120]
[425134598,1781542298000,-500.0,0.00038141,120]
[425134600,1781542298000,-500.0,0.00038141,120]
[425134604,1781542298000,-500.0,0.00038141,120]
[425134610,1781542298000,-500.0,0.00038141,120]
[425134607,1781542298000,-500.0,0.00038141,120]
[425134608,1781542298000,-500.0,0.00038141,120]
[425134609,1781542298000,-500.0,0.00038141,120]
[425134612,1781542298000,-500.0,0.00038141,120]
[425134611,1781542298000,-500.0,0.00038141,120]
[425134613,1781542298000,-500.0,0.00038141,120]
[425134614,1781542298000,-500.0,0.00038141,120]
[425134615,1781542298000,-500.0,0.00038141,120]
[425134616,1781542298000,-500.0,0.00038141,120]
[425134617,1781542298000,-500.0,0.00038141,120]
[425134606,1781542298000,-500.0,0.00038141,120]
[425134618,1781542299000,-500.0,0.00038141,120]
[425134619,1781542299000,-500.0,0.00038141,120]
[425134620,1781542299000,-500.0,0.00038141,120]
[425134621,1781542299000,-500.0,0.00038141,120]
[425134624,1781542299000,-234.66857153,0.00038141,120]
[425134623,1781542299000,-500.0,0.00038141,120]
[425134625,1781542299000,-151.0,0.00038142,120]
[425134626,1781542299000,-156.0,0.00038142,120]
[425134622,1781542299000,-500.0,0.00038141,120]
[425134628,1781542301000,-151.0,0.00038148,30]
[425134627,1781542301000,-151.0,0.00038148,120]
[425134636,1781542302000,-500.0,0.00038162,30]
[425134629,1781542302000,-265.08,0.00038151,60]
[425134630,1781542302000,-12313.17,0.00038151,60]
[425134631,1781542302000,-150.0,0.00038155,120]
[425134633,1781542302000,-232.615925,0.00038162,120]
[425134635,1781542302000,-1147.75880986,0.00038162,30]
[425134634,1781542302000,-2957.90487968,0.00038162,60]
[425134637,1781542302000,-20000.0,0.00038162,30]
[425134638,1781542302000,-30000.0,0.00038162,120]
[425134632,1781542302000,-150.0,0.00038161,120]
[425134640,1781542302000,-500.0,0.00038162,60]
[425134649,1781542302000,-30000.0,0.00038175,120]
[425134647,1781542302000,-647.22003402,0.0003817,120]
[425134648,1781542302000,-766.42564518,0.0003817,120]
[425134646,1781542302000,-12313.17,0.00038169,60]
[425134639,1781542302000,-534.99513822,0.00038162,60]
[425134644,1781542302000,-208.48660323,0.00038164,30]
[425134643,1781542302000,-208.48660323,0.00038164,30]
[425134642,1781542302000,-187.04340916,0.00038162,60]
[425134641,1781542302000,-500.0,0.00038162,60]
[425134645,1781542302000,-208.48660323,0.00038164,30]
[425134658,1781542303000,-1223.0,0.00038179,120]
[425134652,1781542303000,-235.0,0.00038179,120]
[425134651,1781542303000,-162.0,0.00038179,120]
[425134653,1781542303000,-7098.67862995,0.00038179,120]
[425134654,1781542303000,-153.0,0.00038179,120]
[425134655,1781542303000,-12313.17,0.00038179,30]
[425134657,1781542303000,-157.0,0.00038179,120]
[425134656,1781542303000,-12313.17,0.00038179,120]